{"text_format":"3","workbook":"xlsx","n_sheets":1,"sheets":["Sheet1"],"read":"whole","date_system":"1900"}

{"sheet":"Sheet1","index":0,"n_rows":213,"n_cols":9,"rows_kept":213}
["case ","CLASS_TYPE_ABJURANT_CHAMPION"," : ","sClass"," = ","\"Abjurant Champion\"","; ","break;",{"$f":"CONCATENATE(A1,B1,C1,D1,E1,F1,G1,H1)","v":"case CLASS_TYPE_ABJURANT_CHAMPION : sClass = \"Abjurant Champion\"; break;"}]
["case ","CLASS_TYPE_ACOLYTE"," : ","sClass"," = ","\"Acolyte of the Skin\"","; ","break;",{"$f":"CONCATENATE(A2,B2,C2,D2,E2,F2,G2,H2)","v":"case CLASS_TYPE_ACOLYTE : sClass = \"Acolyte of the Skin\"; break;"}]
["case ","CLASS_TYPE_ACOLYTE_EGO"," : ","sClass"," = ","\"Acolyte of the Ego\"","; ","break;",{"$f":"CONCATENATE(A3,B3,C3,D3,E3,F3,G3,H3)","v":"case CLASS_TYPE_ACOLYTE_EGO : sClass = \"Acolyte of the Ego\"; break;"}]
["case ","CLASS_TYPE_ALIENIST"," : ","sClass"," = ","\"Alienist\"","; ","break;","case CLASS_TYPE_ALIENIST : sClass = \"Alienist\"; break;"]
["case ","CLASS_TYPE_ANIMA_MAGE"," : ","sClass"," = ","\"Anima Mage\"","; ","break;","case CLASS_TYPE_ANIMA_MAGE : sClass = \"Anima Mage\"; break;"]
["case ","CLASS_TYPE_ANTI_PALADIN"," : ","sClass"," = ","\"Anti-Paladin\"","; ","break;","case CLASS_TYPE_ANTI_PALADIN : sClass = \"Anti-Paladin\"; break;"]
["case ","CLASS_TYPE_ARCANE_DUELIST"," : ","sClass"," = ","\"Arcane Duelist\"","; ","break;","case CLASS_TYPE_ARCANE_DUELIST : sClass = \"Arcane Duelist\"; break;"]
["case ","CLASS_TYPE_ARCHIVIST"," : ","sClass"," = ","\"Archivist\"","; ","break;","case CLASS_TYPE_ARCHIVIST : sClass = \"Archivist\"; break;"]
["case ","CLASS_TYPE_ARCHMAGE"," : ","sClass"," = ","\"Archmage\"","; ","break;","case CLASS_TYPE_ARCHMAGE : sClass = \"Archmage\"; break;"]
["case ","CLASS_TYPE_ARCTRICK"," : ","sClass"," = ","\"Arcane Trickster\"","; ","break;","case CLASS_TYPE_ARCTRICK : sClass = \"Arcane Trickster\"; break;"]
["case ","CLASS_TYPE_ARTIFICER"," : ","sClass"," = ","\"Artificer\"","; ","break;","case CLASS_TYPE_ARTIFICER : sClass = \"Artificer\"; break;"]
["case ","CLASS_TYPE_BAELNORN"," : ","sClass"," = ","\"Baelnorn\"","; ","break;","case CLASS_TYPE_BAELNORN : sClass = \"Baelnorn\"; break;"]
["case ","CLASS_TYPE_BATTLERAGER"," : ","sClass"," = ","\"Battlerager\"","; ","break;","case CLASS_TYPE_BATTLERAGER : sClass = \"Battlerager\"; break;"]
["case ","CLASS_TYPE_BATTLESMITH"," : ","sClass"," = ","\"Battlesmith\"","; ","break;","case CLASS_TYPE_BATTLESMITH : sClass = \"Battlesmith\"; break;"]
["case ","CLASS_TYPE_BEGUILER"," : ","sClass"," = ","\"Beguiler\"","; ","break;","case CLASS_TYPE_BEGUILER : sClass = \"Beguiler\"; break;"]
["case ","CLASS_TYPE_BEREFT"," : ","sClass"," = ","\"Bereft\"","; ","break;","case CLASS_TYPE_BEREFT : sClass = \"Bereft\"; break;"]
["case ","CLASS_TYPE_BFZ"," : ","sClass"," = ","\"Black Flame Zealot\"","; ","break;","case CLASS_TYPE_BFZ : sClass = \"Black Flame Zealot\"; break;"]
["case ","CLASS_TYPE_BINDER"," : ","sClass"," = ","\"Binder\"","; ","break;","case CLASS_TYPE_BINDER : sClass = \"Binder\"; break;"]
["case ","CLASS_TYPE_BLACK_BLOOD_CULTIST"," : ","sClass"," = ","\"Black Blood Cultist\"","; ","break;","case CLASS_TYPE_BLACK_BLOOD_CULTIST : sClass = \"Black Blood Cultist\"; break;"]
["case ","CLASS_TYPE_BLADESINGER"," : ","sClass"," = ","\"Bladesinger\"","; ","break;","case CLASS_TYPE_BLADESINGER : sClass = \"Bladesinger\"; break;"]
["case ","CLASS_TYPE_BLIGHTER"," : ","sClass"," = ","\"Blighter\"","; ","break;","case CLASS_TYPE_BLIGHTER : sClass = \"Blighter\"; break;"]
["case ","CLASS_TYPE_BLIGHTLORD"," : ","sClass"," = ","\"Talontar Blightlord\"","; ","break;","case CLASS_TYPE_BLIGHTLORD : sClass = \"Talontar Blightlord\"; break;"]
["case ","CLASS_TYPE_BLOOD_MAGUS"," : ","sClass"," = ","\"Blood Magus\"","; ","break;","case CLASS_TYPE_BLOOD_MAGUS : sClass = \"Blood Magus\"; break;"]
["case ","CLASS_TYPE_BLOODCLAW_MASTER"," : ","sClass"," = ","\"Bloodclaw Master\"","; ","break;","case CLASS_TYPE_BLOODCLAW_MASTER : sClass = \"Bloodclaw Master\"; break;"]
["case ","CLASS_TYPE_BONDED_SUMMONNER"," : ","sClass"," = ","\"Bonded Summoner\"","; ","break;","case CLASS_TYPE_BONDED_SUMMONNER : sClass = \"Bonded Summoner\"; break;"]
["case ","CLASS_TYPE_BRIMSTONE_SPEAKER"," : ","sClass"," = ","\"Brimstone Speaker\"","; ","break;","case CLASS_TYPE_BRIMSTONE_SPEAKER : sClass = \"Brimstone Speaker\"; break;"]
["case ","CLASS_TYPE_CELEBRANT_SHARESS"," : ","sClass"," = ","\"Celebrant of Sharess\"","; ","break;","case CLASS_TYPE_CELEBRANT_SHARESS : sClass = \"Celebrant of Sharess\"; break;"]
["case ","CLASS_TYPE_CEREBREMANCER"," : ","sClass"," = ","\"Cerebremancer\"","; ","break;","case CLASS_TYPE_CEREBREMANCER : sClass = \"Cerebremancer\"; break;"]
["case ","CLASS_TYPE_CHILD_OF_NIGHT"," : ","sClass"," = ","\"Child of Night\"","; ","break;","case CLASS_TYPE_CHILD_OF_NIGHT : sClass = \"Child of Night\"; break;"]
["case ","CLASS_TYPE_COC"," : ","sClass"," = ","\"Champion of Corellon\"","; ","break;","case CLASS_TYPE_COC : sClass = \"Champion of Corellon\"; break;"]
["case ","CLASS_TYPE_COMBAT_MEDIC"," : ","sClass"," = ","\"Combat Medic\"","; ","break;","case CLASS_TYPE_COMBAT_MEDIC : sClass = \"Combat Medic\"; break;"]
["case ","CLASS_TYPE_CONTEMPLATIVE"," : ","sClass"," = ","\"Comtemplative\"","; ","break;","case CLASS_TYPE_CONTEMPLATIVE : sClass = \"Comtemplative\"; break;"]
["case ","CLASS_TYPE_CRINTI_SHADOW_MARAUDER"," : ","sClass"," = ","\"Crinti Shadow Marauder\"","; ","break;","case CLASS_TYPE_CRINTI_SHADOW_MARAUDER : sClass = \"Crinti Shadow Marauder\"; break;"]
["case ","CLASS_TYPE_CRUSADER"," : ","sClass"," = ","\"Crusader\"","; ","break;","case CLASS_TYPE_CRUSADER : sClass = \"Crusader\"; break;"]
["case ","CLASS_TYPE_CULTIST_SHATTERED_PEAK"," : ","sClass"," = ","\"Cultist of the Shattered Peak\"","; ","break;","case CLASS_TYPE_CULTIST_SHATTERED_PEAK : sClass = \"Cultist of the Shattered Peak\"; break;"]
["case ","CLASS_TYPE_CW_SAMURAI"," : ","sClass"," = ","\"Samurai\"","; ","break;","case CLASS_TYPE_CW_SAMURAI : sClass = \"Samurai\"; break;"]
["case ","CLASS_TYPE_DEEPSTONE_SENTINEL"," : ","sClass"," = ","\"Deepstone Sentinel\"","; ","break;","case CLASS_TYPE_DEEPSTONE_SENTINEL : sClass = \"Deepstone Sentinel\"; break;"]
["case ","CLASS_TYPE_DIABOLIST"," : ","sClass"," = ","\"Diabolist\"","; ","break;","case CLASS_TYPE_DIABOLIST : sClass = \"Diabolist\"; break;"]
["case ","CLASS_TYPE_DIAMOND_DRAGON"," : ","sClass"," = ","\"Diamond Dragon\"","; ","break;","case CLASS_TYPE_DIAMOND_DRAGON : sClass = \"Diamond Dragon\"; break;"]
["case ","CLASS_TYPE_DIRGESINGER"," : ","sClass"," = ","\"Dirgesinger\"","; ","break;","case CLASS_TYPE_DIRGESINGER : sClass = \"Dirgesinger\"; break;"]
["case ","CLASS_TYPE_DISC_BAALZEBUL"," : ","sClass"," = ","\"Disciple of Baalzebub\"","; ","break;","case CLASS_TYPE_DISC_BAALZEBUL : sClass = \"Disciple of Baalzebub\"; break;"]
["case ","CLASS_TYPE_DISCIPLE_OF_ASMODEUS"," : ","sClass"," = ","\"Disciple of Asmodeus\"","; ","break;","case CLASS_TYPE_DISCIPLE_OF_ASMODEUS : sClass = \"Disciple of Asmodeus\"; break;"]
["case ","CLASS_TYPE_DISCIPLE_OF_MEPH"," : ","sClass"," = ","\"Disciple of Mephistoples\"","; ","break;","case CLASS_TYPE_DISCIPLE_OF_MEPH : sClass = \"Disciple of Mephistoples\"; break;"]
["case ","CLASS_TYPE_DISPATER"," : ","sClass"," = ","\"Disciple of Dispater\"","; ","break;","case CLASS_TYPE_DISPATER : sClass = \"Disciple of Dispater\"; break;"]
["case ","CLASS_TYPE_DRAGON_DEVOTEE"," : ","sClass"," = ","\"Dragon Devotee\"","; ","break;","case CLASS_TYPE_DRAGON_DEVOTEE : sClass = \"Dragon Devotee\"; break;"]
["case ","CLASS_TYPE_DRAGON_SHAMAN"," : ","sClass"," = ","\"Dragon Shaman\"","; ","break;","case CLASS_TYPE_DRAGON_SHAMAN : sClass = \"Dragon Shaman\"; break;"]
["case ","CLASS_TYPE_DRAGONFIRE_ADEPT"," : ","sClass"," = ","\"Dragonfire Adept\"","; ","break;","case CLASS_TYPE_DRAGONFIRE_ADEPT : sClass = \"Dragonfire Adept\"; break;"]
["case ","CLASS_TYPE_DRAGONHEART_MAGE"," : ","sClass"," = ","\"Dragonheart Mage\"","; ","break;","case CLASS_TYPE_DRAGONHEART_MAGE : sClass = \"Dragonheart Mage\"; break;"]
["case ","CLASS_TYPE_DRAGONSONG_LYRIST"," : ","sClass"," = ","\"Dragonsong Lyrist\"","; ","break;","case CLASS_TYPE_DRAGONSONG_LYRIST : sClass = \"Dragonsong Lyrist\"; break;"]
["case ","CLASS_TYPE_DREAD_NECROMANCER"," : ","sClass"," = ","\"Dread Necromancer\"","; ","break;","case CLASS_TYPE_DREAD_NECROMANCER : sClass = \"Dread Necromancer\"; break;"]
["case ","CLASS_TYPE_DRUNKEN_MASTER"," : ","sClass"," = ","\"Drunken Master\"","; ","break;","case CLASS_TYPE_DRUNKEN_MASTER : sClass = \"Drunken Master\"; break;"]
["case ","CLASS_TYPE_DUELIST"," : ","sClass"," = ","\"Duelist\"","; ","break;","case CLASS_TYPE_DUELIST : sClass = \"Duelist\"; break;"]
["case ","CLASS_TYPE_DUSKBLADE"," : ","sClass"," = ","\"Duskblade\"","; ","break;","case CLASS_TYPE_DUSKBLADE : sClass = \"Duskblade\"; break;"]
["case ","CLASS_TYPE_ELDRITCH_DISCIPLE"," : ","sClass"," = ","\"Eldritch Disciple\"","; ","break;","case CLASS_TYPE_ELDRITCH_DISCIPLE : sClass = \"Eldritch Disciple\"; break;"]
["case ","CLASS_TYPE_ELDRITCH_KNIGHT"," : ","sClass"," = ","\"Eldritch Knight\"","; ","break;","case CLASS_TYPE_ELDRITCH_KNIGHT : sClass = \"Eldritch Knight\"; break;"]
["case ","CLASS_TYPE_ELDRITCH_THEURGE"," : ","sClass"," = ","\"Eldritch Theurge\"","; ","break;","case CLASS_TYPE_ELDRITCH_THEURGE : sClass = \"Eldritch Theurge\"; break;"]
["case ","CLASS_TYPE_ELEMENTAL_SAVANT"," : ","sClass"," = ","\"Elemental Savant\"","; ","break;","case CLASS_TYPE_ELEMENTAL_SAVANT : sClass = \"Elemental Savant\"; break;"]
["case ","CLASS_TYPE_ENLIGHTENEDFIST"," : ","sClass"," = ","\"Enlightened Fist\"","; ","break;","case CLASS_TYPE_ENLIGHTENEDFIST : sClass = \"Enlightened Fist\"; break;"]
["case ","CLASS_TYPE_ETERNAL_BLADE"," : ","sClass"," = ","\"Eternal Blade\"","; ","break;","case CLASS_TYPE_ETERNAL_BLADE : sClass = \"Eternal Blade\"; break;"]
["case ","CLASS_TYPE_FACTOTUM"," : ","sClass"," = ","\"Factotum\"","; ","break;","case CLASS_TYPE_FACTOTUM : sClass = \"Factotum\"; break;"]
["case ","CLASS_TYPE_FAVOURED_SOUL"," : ","sClass"," = ","\"Favoured Soul\"","; ","break;","case CLASS_TYPE_FAVOURED_SOUL : sClass = \"Favoured Soul\"; break;"]
["case ","CLASS_TYPE_FIST_DAL_QUOR"," : ","sClass"," = ","\"Fist of Dal Quor\"","; ","break;","case CLASS_TYPE_FIST_DAL_QUOR : sClass = \"Fist of Dal Quor\"; break;"]
["case ","CLASS_TYPE_FIST_OF_ZUOKEN"," : ","sClass"," = ","\"Fist of Zuoken\"","; ","break;","case CLASS_TYPE_FIST_OF_ZUOKEN : sClass = \"Fist of Zuoken\"; break;"]
["case ","CLASS_TYPE_FISTRAZIEL"," : ","sClass"," = ","\"Fist of Raziel\"","; ","break;","case CLASS_TYPE_FISTRAZIEL : sClass = \"Fist of Raziel\"; break;"]
["case ","CLASS_TYPE_FMM"," : ","sClass"," = ","\"Force Missile Mage\"","; ","break;","case CLASS_TYPE_FMM : sClass = \"Force Missile Mage\"; break;"]
["case ","CLASS_TYPE_FOCHLUCAN_LYRIST"," : ","sClass"," = ","\"Fochlucan Lyrist\"","; ","break;","case CLASS_TYPE_FOCHLUCAN_LYRIST : sClass = \"Fochlucan Lyrist\"; break;"]
["case ","CLASS_TYPE_FOE_HUNTER"," : ","sClass"," = ","\"Foe Hunter\"","; ","break;",{"$f":"CONCATENATE(A67,B67,C67,D67,E67,F67,G67,H67)","v":"case CLASS_TYPE_FOE_HUNTER : sClass = \"Foe Hunter\"; break;"}]
["case ","CLASS_TYPE_FORESTMASTER"," : ","sClass"," = ","\"Forest Master\"","; ","break;","case CLASS_TYPE_FORESTMASTER : sClass = \"Forest Master\"; break;"]
["case ","CLASS_TYPE_FORSAKER"," : ","sClass"," = ","\"Forsaker\"","; ","break;","case CLASS_TYPE_FORSAKER : sClass = \"Forsaker\"; break;"]
["case ","CLASS_TYPE_FRE_BERSERKER"," : ","sClass"," = ","\"Frenzied Berzerker\"","; ","break;","case CLASS_TYPE_FRE_BERSERKER : sClass = \"Frenzied Berzerker\"; break;"]
["case ","CLASS_TYPE_FROST_MAGE"," : ","sClass"," = ","\"Frost Mage\"","; ","break;","case CLASS_TYPE_FROST_MAGE : sClass = \"Frost Mage\"; break;"]
["case ","CLASS_TYPE_FROSTRAGER"," : ","sClass"," = ","\"Frostrager\"","; ","break;","case CLASS_TYPE_FROSTRAGER : sClass = \"Frostrager\"; break;"]
["case ","CLASS_TYPE_GHOST_FACED_KILLER"," : ","sClass"," = ","\"Ghost Faced Killer\"","; ","break;","case CLASS_TYPE_GHOST_FACED_KILLER : sClass = \"Ghost Faced Killer\"; break;"]
["case ","CLASS_TYPE_HALFLING_WARSLINGER"," : ","sClass"," = ","\"Halfling Warslinger\"","; ","break;","case CLASS_TYPE_HALFLING_WARSLINGER : sClass = \"Halfling Warslinger\"; break;"]
["case ","CLASS_TYPE_HANDOTWM"," : ","sClass"," = ","\"Hand of the Winged Masters\"","; ","break;","case CLASS_TYPE_HANDOTWM : sClass = \"Hand of the Winged Masters\"; break;"]
["case ","CLASS_TYPE_HARPERMAGE"," : ","sClass"," = ","\"Harper Mage\"","; ","break;","case CLASS_TYPE_HARPERMAGE : sClass = \"Harper Mage\"; break;"]
["case ","CLASS_TYPE_HATHRAN"," : ","sClass"," = ","\"Hathran\"","; ","break;","case CLASS_TYPE_HATHRAN : sClass = \"Hathran\"; break;"]
["case ","CLASS_TYPE_HAVOC_MAGE"," : ","sClass"," = ","\"Havoc Mage\"","; ","break;","case CLASS_TYPE_HAVOC_MAGE : sClass = \"Havoc Mage\"; break;"]
["case ","CLASS_TYPE_HEALER"," : ","sClass"," = ","\"Hearler\"","; ","break;","case CLASS_TYPE_HEALER : sClass = \"Hearler\"; break;"]
["case ","CLASS_TYPE_HEARTWARDER"," : ","sClass"," = ","\"Heartwarder\"","; ","break;","case CLASS_TYPE_HEARTWARDER : sClass = \"Heartwarder\"; break;"]
["case ","CLASS_TYPE_HELLFIRE_WARLOCK"," : ","sClass"," = ","\"Hellfire Warlock\"","; ","break;","case CLASS_TYPE_HELLFIRE_WARLOCK : sClass = \"Hellfire Warlock\"; break;"]
["case ","CLASS_TYPE_HENSHIN_MYSTIC"," : ","sClass"," = ","\"Henshin Mystic\"","; ","break;","case CLASS_TYPE_HENSHIN_MYSTIC : sClass = \"Henshin Mystic\"; break;"]
["case ","CLASS_TYPE_HEXBLADE"," : ","sClass"," = ","\"Hexblade\"","; ","break;","case CLASS_TYPE_HEXBLADE : sClass = \"Hexblade\"; break;"]
["case ","CLASS_TYPE_HEXTOR"," : ","sClass"," = ","\"Fixt of Hextor\"","; ","break;","case CLASS_TYPE_HEXTOR : sClass = \"Fixt of Hextor\"; break;"]
["case ","CLASS_TYPE_HIEROPHANT"," : ","sClass"," = ","\"Hierophant\"","; ","break;","case CLASS_TYPE_HIEROPHANT : sClass = \"Hierophant\"; break;"]
["case ","CLASS_TYPE_HOSPITALER"," : ","sClass"," = ","\"Hospitaler\"","; ","break;","case CLASS_TYPE_HOSPITALER : sClass = \"Hospitaler\"; break;"]
["case ","CLASS_TYPE_IAIJUTSU_MASTER"," : ","sClass"," = ","\"Iaijuts Master\"","; ","break;","case CLASS_TYPE_IAIJUTSU_MASTER : sClass = \"Iaijuts Master\"; break;"]
["case ","CLASS_TYPE_INCANDESCENT_CHAMPION"," : ","sClass"," = ","\"Incandescent Champion\"","; ","break;","case CLASS_TYPE_INCANDESCENT_CHAMPION : sClass = \"Incandescent Champion\"; break;"]
["case ","CLASS_TYPE_INCARNATE"," : ","sClass"," = ","\"Incarnate\"","; ","break;","case CLASS_TYPE_INCARNATE : sClass = \"Incarnate\"; break;"]
["case ","CLASS_TYPE_INCARNUM_BLADE"," : ","sClass"," = ","\"Incarnum Blade\"","; ","break;","case CLASS_TYPE_INCARNUM_BLADE : sClass = \"Incarnum Blade\"; break;"]
["case ","CLASS_TYPE_INITIATE_DRACONIC"," : ","sClass"," = ","\"Initiate of Draconic Mysteries\"","; ","break;","case CLASS_TYPE_INITIATE_DRACONIC : sClass = \"Initiate of Draconic Mysteries\"; break;"]
["case ","CLASS_TYPE_IRONMIND"," : ","sClass"," = ","\"Iron Mind\"","; ","break;","case CLASS_TYPE_IRONMIND : sClass = \"Iron Mind\"; break;"]
["case ","CLASS_TYPE_IRONSOUL_FORGEMASTER"," : ","sClass"," = ","\"Ironsoul Forgemaster\"","; ","break;","case CLASS_TYPE_IRONSOUL_FORGEMASTER : sClass = \"Ironsoul Forgemaster\"; break;"]
["case ","CLASS_TYPE_JADE_PHOENIX_MAGE"," : ","sClass"," = ","\"Jade Phoenix Mage\"","; ","break;","case CLASS_TYPE_JADE_PHOENIX_MAGE : sClass = \"Jade Phoenix Mage\"; break;"]
["case ","CLASS_TYPE_JUDICATOR"," : ","sClass"," = ","\"Drow Judicator\"","; ","break;","case CLASS_TYPE_JUDICATOR : sClass = \"Drow Judicator\"; break;"]
["case ","CLASS_TYPE_JUSTICEWW"," : ","sClass"," = ","\"Justice of Weald and Woe\"","; ","break;","case CLASS_TYPE_JUSTICEWW : sClass = \"Justice of Weald and Woe\"; break;"]
["case ","CLASS_TYPE_KNIGHT"," : ","sClass"," = ","\"Knight\"","; ","break;","case CLASS_TYPE_KNIGHT : sClass = \"Knight\"; break;"]
["case ","CLASS_TYPE_KNIGHT_CHALICE"," : ","sClass"," = ","\"Knight of the Chalice\"","; ","break;","case CLASS_TYPE_KNIGHT_CHALICE : sClass = \"Knight of the Chalice\"; break;"]
["case ","CLASS_TYPE_KNIGHT_MIDDLECIRCLE"," : ","sClass"," = ","\"Knight of the Middle Circle\"","; ","break;","case CLASS_TYPE_KNIGHT_MIDDLECIRCLE : sClass = \"Knight of the Middle Circle\"; break;"]
["case ","CLASS_TYPE_KNIGHT_SACRED_SEAL"," : ","sClass"," = ","\"Knight of the Scacred Seal\"","; ","break;","case CLASS_TYPE_KNIGHT_SACRED_SEAL : sClass = \"Knight of the Scacred Seal\"; break;"]
["case ","CLASS_TYPE_KNIGHT_WEAVE"," : ","sClass"," = ","\"Knight of the Weave\"","; ","break;","case CLASS_TYPE_KNIGHT_WEAVE : sClass = \"Knight of the Weave\"; break;"]
["case ","CLASS_TYPE_LASHER"," : ","sClass"," = ","\"Lasher\"","; ","break;","case CLASS_TYPE_LASHER : sClass = \"Lasher\"; break;"]
["case ","CLASS_TYPE_LEGENDARY_DREADNOUGHT"," : ","sClass"," = ","\"Legendary Dreadnought\"","; ","break;","case CLASS_TYPE_LEGENDARY_DREADNOUGHT : sClass = \"Legendary Dreadnought\"; break;"]
["case ","CLASS_TYPE_LICH"," : ","sClass"," = ","\"Lich\"","; ","break;","case CLASS_TYPE_LICH : sClass = \"Lich\"; break;"]
["case ","CLASS_TYPE_MAESTER"," : ","sClass"," = ","\"Maester\"","; ","break;","case CLASS_TYPE_MAESTER : sClass = \"Maester\"; break;"]
["case ","CLASS_TYPE_MAGEKILLER"," : ","sClass"," = ","\"Magekiller\"","; ","break;","case CLASS_TYPE_MAGEKILLER : sClass = \"Magekiller\"; break;"]
["case ","CLASS_TYPE_MARSHAL"," : ","sClass"," = ","\"Marshall\"","; ","break;","case CLASS_TYPE_MARSHAL : sClass = \"Marshall\"; break;"]
["case ","CLASS_TYPE_MASTER_ALCHEMIST"," : ","sClass"," = ","\"Master Alchemist\"","; ","break;","case CLASS_TYPE_MASTER_ALCHEMIST : sClass = \"Master Alchemist\"; break;"]
["case ","CLASS_TYPE_MASTER_HARPER"," : ","sClass"," = ","\"Master Harper\"","; ","break;","case CLASS_TYPE_MASTER_HARPER : sClass = \"Master Harper\"; break;"]
["case ","CLASS_TYPE_MASTER_OF_NINE"," : ","sClass"," = ","\"Master of Nine\"","; ","break;","case CLASS_TYPE_MASTER_OF_NINE : sClass = \"Master of Nine\"; break;"]
["case ","CLASS_TYPE_MASTER_OF_SHADOW"," : ","sClass"," = ","\"Master of Shadow\"","; ","break;","case CLASS_TYPE_MASTER_OF_SHADOW : sClass = \"Master of Shadow\"; break;"]
["case ","CLASS_TYPE_MASTER_OF_SHROUDS"," : ","sClass"," = ","\"Master of Shrouds\"","; ","break;","case CLASS_TYPE_MASTER_OF_SHROUDS : sClass = \"Master of Shrouds\"; break;"]
["case ","CLASS_TYPE_MIGHTY_CONTENDER_KORD"," : ","sClass"," = ","\"Mighty Contender of Kord\"","; ","break;","case CLASS_TYPE_MIGHTY_CONTENDER_KORD : sClass = \"Mighty Contender of Kord\"; break;"]
["case ","CLASS_TYPE_MORNINGLORD"," : ","sClass"," = ","\"Morninglord of Lathander\"","; ","break;","case CLASS_TYPE_MORNINGLORD : sClass = \"Morninglord of Lathander\"; break;"]
["case ","CLASS_TYPE_MYSTIC_THEURGE"," : ","sClass"," = ","\"Mystic Theurge\"","; ","break;","case CLASS_TYPE_MYSTIC_THEURGE : sClass = \"Mystic Theurge\"; break;"]
["case ","CLASS_TYPE_NECROCARNATE"," : ","sClass"," = ","\"Necrocarnate\"","; ","break;","case CLASS_TYPE_NECROCARNATE : sClass = \"Necrocarnate\"; break;"]
["case ","CLASS_TYPE_NENTYAR_HUNTER"," : ","sClass"," = ","\"Nentyar Hunter\"","; ","break;","case CLASS_TYPE_NENTYAR_HUNTER : sClass = \"Nentyar Hunter\"; break;"]
["case ","CLASS_TYPE_NIGHTSHADE"," : ","sClass"," = ","\"Nightshade\"","; ","break;","case CLASS_TYPE_NIGHTSHADE : sClass = \"Nightshade\"; break;"]
["case ","CLASS_TYPE_NINJA"," : ","sClass"," = ","\"Ninja\"","; ","break;","case CLASS_TYPE_NINJA : sClass = \"Ninja\"; break;"]
["case ","CLASS_TYPE_NINJA_SPY"," : ","sClass"," = ","\"Ninja Spy\"","; ","break;","case CLASS_TYPE_NINJA_SPY : sClass = \"Ninja Spy\"; break;"]
["case ","CLASS_TYPE_NOCTUMANCER"," : ","sClass"," = ","\"Noctumancer\"","; ","break;","case CLASS_TYPE_NOCTUMANCER : sClass = \"Noctumancer\"; break;"]
["case ","CLASS_TYPE_OCULAR"," : ","sClass"," = ","\"Ocular Adept\"","; ","break;","case CLASS_TYPE_OCULAR : sClass = \"Ocular Adept\"; break;"]
["case ","CLASS_TYPE_OLLAM"," : ","sClass"," = ","\"Ollam\"","; ","break;","case CLASS_TYPE_OLLAM : sClass = \"Ollam\"; break;"]
["case ","CLASS_TYPE_OOZEMASTER"," : ","sClass"," = ","\"Oozemaster\"","; ","break;","case CLASS_TYPE_OOZEMASTER : sClass = \"Oozemaster\"; break;"]
["case ","CLASS_TYPE_ORC_WARLORD"," : ","sClass"," = ","\"Orc Warlord\"","; ","break;","case CLASS_TYPE_ORC_WARLORD : sClass = \"Orc Warlord\"; break;"]
["case ","CLASS_TYPE_ORCUS"," : ","sClass"," = ","\"Thrall of Orcus\"","; ","break;","case CLASS_TYPE_ORCUS : sClass = \"Thrall of Orcus\"; break;"]
["case ","CLASS_TYPE_ORDER_BOW_INITIATE"," : ","sClass"," = ","\"Order of the Bow Initiate\"","; ","break;","case CLASS_TYPE_ORDER_BOW_INITIATE : sClass = \"Order of the Bow Initiate\"; break;"]
["case ","CLASS_TYPE_PEERLESS"," : ","sClass"," = ","\"Peerless Archer\"","; ","break;","case CLASS_TYPE_PEERLESS : sClass = \"Peerless Archer\"; break;"]
["case ","CLASS_TYPE_PNP_SHIFTER"," : ","sClass"," = ","\"Shifter\"","; ","break;","case CLASS_TYPE_PNP_SHIFTER : sClass = \"Shifter\"; break;"]
["case ","CLASS_TYPE_PRC_EYE_OF_GRUUMSH"," : ","sClass"," = ","\"Eye of Gruumsh\"","; ","break;","case CLASS_TYPE_PRC_EYE_OF_GRUUMSH : sClass = \"Eye of Gruumsh\"; break;"]
["case ","CLASS_TYPE_PSION"," : ","sClass"," = ","\"Psion\"","; ","break;",{"$f":"CONCATENATE(A131,B131,C131,D131,E131,F131,G131,H131)","v":"case CLASS_TYPE_PSION : sClass = \"Psion\"; break;"}]
["case ","CLASS_TYPE_PSYCHIC_ROGUE"," : ","sClass"," = ","\"Psychic Rogue\"","; ","break;","case CLASS_TYPE_PSYCHIC_ROGUE : sClass = \"Psychic Rogue\"; break;"]
["case ","CLASS_TYPE_PSYCHIC_THEURGE"," : ","sClass"," = ","\"Psychic Theurge\"","; ","break;","case CLASS_TYPE_PSYCHIC_THEURGE : sClass = \"Psychic Theurge\"; break;"]
["case ","CLASS_TYPE_PSYWAR"," : ","sClass"," = ","\"Psychic Warior\"","; ","break;","case CLASS_TYPE_PSYWAR : sClass = \"Psychic Warior\"; break;"]
["case ","CLASS_TYPE_PYROKINETICIST"," : ","sClass"," = ","\"Pyrokineticist\"","; ","break;","case CLASS_TYPE_PYROKINETICIST : sClass = \"Pyrokineticist\"; break;"]
["case ","CLASS_TYPE_RAGE_MAGE"," : ","sClass"," = ","\"Rage Mage\"","; ","break;","case CLASS_TYPE_RAGE_MAGE : sClass = \"Rage Mage\"; break;"]
["case ","CLASS_TYPE_RAVAGER"," : ","sClass"," = ","\"Ravager\"","; ","break;","case CLASS_TYPE_RAVAGER : sClass = \"Ravager\"; break;"]
["case ","CLASS_TYPE_REAPING_MAULER"," : ","sClass"," = ","\"Reaping Mauler\"","; ","break;","case CLASS_TYPE_REAPING_MAULER : sClass = \"Reaping Mauler\"; break;"]
["case ","CLASS_TYPE_RED_AVENGER"," : ","sClass"," = ","\"Red Avenger\"","; ","break;","case CLASS_TYPE_RED_AVENGER : sClass = \"Red Avenger\"; break;"]
["case ","CLASS_TYPE_RED_WIZARD"," : ","sClass"," = ","\"Red Wizard\"","; ","break;","case CLASS_TYPE_RED_WIZARD : sClass = \"Red Wizard\"; break;"]
["case ","CLASS_TYPE_RUBY_VINDICATOR"," : ","sClass"," = ","\"Ruby Knight Vindicatior\"","; ","break;","case CLASS_TYPE_RUBY_VINDICATOR : sClass = \"Ruby Knight Vindicatior\"; break;"]
["case ","CLASS_TYPE_RUNECASTER"," : ","sClass"," = ","\"Runecaster\"","; ","break;","case CLASS_TYPE_RUNECASTER : sClass = \"Runecaster\"; break;"]
["case ","CLASS_TYPE_RUNESCARRED"," : ","sClass"," = ","\"Runescarred Berzerker\"","; ","break;","case CLASS_TYPE_RUNESCARRED : sClass = \"Runescarred Berzerker\"; break;"]
["case ","CLASS_TYPE_SACREDFIST"," : ","sClass"," = ","\"Sacred Fist\"","; ","break;","case CLASS_TYPE_SACREDFIST : sClass = \"Sacred Fist\"; break;"]
["case ","CLASS_TYPE_SACREDPURIFIER"," : ","sClass"," = ","\"Sacred Purifier\"","; ","break;","case CLASS_TYPE_SACREDPURIFIER : sClass = \"Sacred Purifier\"; break;"]
["case ","CLASS_TYPE_SAMURAI"," : ","sClass"," = ","\"Samurai\"","; ","break;","case CLASS_TYPE_SAMURAI : sClass = \"Samurai\"; break;"]
["case ","CLASS_TYPE_SANCTIFIED_MIND"," : ","sClass"," = ","\"Sanctified Mind\"","; ","break;","case CLASS_TYPE_SANCTIFIED_MIND : sClass = \"Sanctified Mind\"; break;"]
["case ","CLASS_TYPE_SAPPHIRE_HIERARCH"," : ","sClass"," = ","\"Sapphire Hierarch\"","; ","break;","case CLASS_TYPE_SAPPHIRE_HIERARCH : sClass = \"Sapphire Hierarch\"; break;"]
["case ","CLASS_TYPE_SCION_DANTALION"," : ","sClass"," = ","\"Scion of Dantalion\"","; ","break;","case CLASS_TYPE_SCION_DANTALION : sClass = \"Scion of Dantalion\"; break;"]
["case ","CLASS_TYPE_SCOUT"," : ","sClass"," = ","\"Scout\"","; ","break;","case CLASS_TYPE_SCOUT : sClass = \"Scout\"; break;"]
["case ","CLASS_TYPE_SERENE_GUARDIAN"," : ","sClass"," = ","\"Serene Guardian\"","; ","break;","case CLASS_TYPE_SERENE_GUARDIAN : sClass = \"Serene Guardian\"; break;"]
["case ","CLASS_TYPE_SHADOW_ADEPT"," : ","sClass"," = ","\"Shadow Adept\"","; ","break;","case CLASS_TYPE_SHADOW_ADEPT : sClass = \"Shadow Adept\"; break;"]
["case ","CLASS_TYPE_SHADOW_SUN_NINJA"," : ","sClass"," = ","\"Shadow Sun Ninja\"","; ","break;","case CLASS_TYPE_SHADOW_SUN_NINJA : sClass = \"Shadow Sun Ninja\"; break;"]
["case ","CLASS_TYPE_SHADOW_THIEF_AMN"," : ","sClass"," = ","\"Shadow Thief of Amn\"","; ","break;","case CLASS_TYPE_SHADOW_THIEF_AMN : sClass = \"Shadow Thief of Amn\"; break;"]
["case ","CLASS_TYPE_SHADOWBANE_INQUISITOR"," : ","sClass"," = ","\"Shadowbane Inqusitor\"","; ","break;","case CLASS_TYPE_SHADOWBANE_INQUISITOR : sClass = \"Shadowbane Inqusitor\"; break;"]
["case ","CLASS_TYPE_SHADOWBANE_STALKER"," : ","sClass"," = ","\"Shadowbane Stalker\"","; ","break;","case CLASS_TYPE_SHADOWBANE_STALKER : sClass = \"Shadowbane Stalker\"; break;"]
["case ","CLASS_TYPE_SHADOWBLADE"," : ","sClass"," = ","\"Shadowblade\"","; ","break;","case CLASS_TYPE_SHADOWBLADE : sClass = \"Shadowblade\"; break;"]
["case ","CLASS_TYPE_SHADOWCASTER"," : ","sClass"," = ","\"Shadowcaster\"","; ","break;","case CLASS_TYPE_SHADOWCASTER : sClass = \"Shadowcaster\"; break;"]
["case ","CLASS_TYPE_SHADOWLORD"," : ","sClass"," = ","\"Shadowlord\"","; ","break;","case CLASS_TYPE_SHADOWLORD : sClass = \"Shadowlord\"; break;"]
["case ","CLASS_TYPE_SHADOWMIND"," : ","sClass"," = ","\"Shadowmind\"","; ","break;","case CLASS_TYPE_SHADOWMIND : sClass = \"Shadowmind\"; break;"]
["case ","CLASS_TYPE_SHADOWSMITH"," : ","sClass"," = ","\"Shadowsmith\"","; ","break;","case CLASS_TYPE_SHADOWSMITH : sClass = \"Shadowsmith\"; break;"]
["case ","CLASS_TYPE_SHAMAN"," : ","sClass"," = ","\"Shaman\"","; ","break;","case CLASS_TYPE_SHAMAN : sClass = \"Shaman\"; break;"]
["case ","CLASS_TYPE_SHINING_BLADE"," : ","sClass"," = ","\"Shining Blade of Hieroneous\"","; ","break;","case CLASS_TYPE_SHINING_BLADE : sClass = \"Shining Blade of Hieroneous\"; break;"]
["case ","CLASS_TYPE_SHOU"," : ","sClass"," = ","\"Shou Disciple\"","; ","break;","case CLASS_TYPE_SHOU : sClass = \"Shou Disciple\"; break;"]
["case ","CLASS_TYPE_SKULLCLAN_HUNTER"," : ","sClass"," = ","\"Skullclan Hunter\"","; ","break;","case CLASS_TYPE_SKULLCLAN_HUNTER : sClass = \"Skullclan Hunter\"; break;"]
["case ","CLASS_TYPE_SLAYER_OF_DOMIEL"," : ","sClass"," = ","\"Slayer of Domiel\"","; ","break;","case CLASS_TYPE_SLAYER_OF_DOMIEL : sClass = \"Slayer of Domiel\"; break;"]
["case ","CLASS_TYPE_SOHEI"," : ","sClass"," = ","\"Sohei\"","; ","break;","case CLASS_TYPE_SOHEI : sClass = \"Sohei\"; break;"]
["case ","CLASS_TYPE_SOLDIER_OF_LIGHT"," : ","sClass"," = ","\"Soldier of Light","; ","break;","case CLASS_TYPE_SOLDIER_OF_LIGHT : sClass = \"Soldier of Light; break;"]
["case ","CLASS_TYPE_SOUL_EATER"," : ","sClass"," = ","\"Soul Eater\"","; ","break;","case CLASS_TYPE_SOUL_EATER : sClass = \"Soul Eater\"; break;"]
["case ","CLASS_TYPE_SOULBORN"," : ","sClass"," = ","\"Soulborn\"","; ","break;","case CLASS_TYPE_SOULBORN : sClass = \"Soulborn\"; break;"]
["case ","CLASS_TYPE_SOULCASTER"," : ","sClass"," = ","\"Soulcaster\"","; ","break;","case CLASS_TYPE_SOULCASTER : sClass = \"Soulcaster\"; break;"]
["case ","CLASS_TYPE_SOULKNIFE"," : ","sClass"," = ","\"Soulknife\"","; ","break;","case CLASS_TYPE_SOULKNIFE : sClass = \"Soulknife\"; break;"]
["case ","CLASS_TYPE_SPELLDANCER"," : ","sClass"," = ","\"Spelldancer\"","; ","break;","case CLASS_TYPE_SPELLDANCER : sClass = \"Spelldancer\"; break;"]
["case ","CLASS_TYPE_SPELLFIRE"," : ","sClass"," = ","\"Spellfire Wielder\"","; ","break;","case CLASS_TYPE_SPELLFIRE : sClass = \"Spellfire Wielder\"; break;"]
["case ","CLASS_TYPE_SPELLSWORD"," : ","sClass"," = ","\"Spellsword\"","; ","break;","case CLASS_TYPE_SPELLSWORD : sClass = \"Spellsword\"; break;"]
["case ","CLASS_TYPE_SPINEMELD_WARRIOR"," : ","sClass"," = ","\"Spinemeld Warrior\"","; ","break;","case CLASS_TYPE_SPINEMELD_WARRIOR : sClass = \"Spinemeld Warrior\"; break;"]
["case ","CLASS_TYPE_SPIRIT_SHAMAN"," : ","sClass"," = ","\"Spirit Shaman\"","; ","break;","case CLASS_TYPE_SPIRIT_SHAMAN : sClass = \"Spirit Shaman\"; break;"]
["case ","CLASS_TYPE_STORMLORD"," : ","sClass"," = ","\"Stormlord or Talos\"","; ","break;","case CLASS_TYPE_STORMLORD : sClass = \"Stormlord or Talos\"; break;"]
["case ","CLASS_TYPE_SUBLIME_CHORD"," : ","sClass"," = ","\"Sublime Chord\"","; ","break;","case CLASS_TYPE_SUBLIME_CHORD : sClass = \"Sublime Chord\"; break;"]
["case ","CLASS_TYPE_SUEL_ARCHANAMACH"," : ","sClass"," = ","\"Suel Archanamach\"","; ","break;","case CLASS_TYPE_SUEL_ARCHANAMACH : sClass = \"Suel Archanamach\"; break;"]
["case ","CLASS_TYPE_SWASHBUCKLER"," : ","sClass"," = ","\"Swashbuckler\"","; ","break;","case CLASS_TYPE_SWASHBUCKLER : sClass = \"Swashbuckler\"; break;"]
["case ","CLASS_TYPE_SWIFT_WING"," : ","sClass"," = ","\"Swift Wing\"","; ","break;","case CLASS_TYPE_SWIFT_WING : sClass = \"Swift Wing\"; break;"]
["case ","CLASS_TYPE_SWORDSAGE"," : ","sClass"," = ","\"Swordsage\"","; ","break;","case CLASS_TYPE_SWORDSAGE : sClass = \"Swordsage\"; break;"]
["case ","CLASS_TYPE_TALON_OF_TIAMAT"," : ","sClass"," = ","\"Talon of Tiamat\"","; ","break;","case CLASS_TYPE_TALON_OF_TIAMAT : sClass = \"Talon of Tiamat\"; break;"]
["case ","CLASS_TYPE_TEMPEST"," : ","sClass"," = ","\"Tempest\"","; ","break;","case CLASS_TYPE_TEMPEST : sClass = \"Tempest\"; break;"]
["case ","CLASS_TYPE_TEMPUS"," : ","sClass"," = ","\"Battleguard of Tempus\"","; ","break;","case CLASS_TYPE_TEMPUS : sClass = \"Battleguard of Tempus\"; break;"]
["case ","CLASS_TYPE_TENEBROUS_APOSTATE"," : ","sClass"," = ","\"Tenebous Apostate\"","; ","break;","case CLASS_TYPE_TENEBROUS_APOSTATE : sClass = \"Tenebous Apostate\"; break;"]
["case ","CLASS_TYPE_THAYAN_KNIGHT"," : ","sClass"," = ","\"Thayan Knight\"","; ","break;","case CLASS_TYPE_THAYAN_KNIGHT : sClass = \"Thayan Knight\"; break;"]
["case ","CLASS_TYPE_THRALL_OF_GRAZZT_A"," : ","sClass"," = ","\"Thrall of Grazzt\"","; ","break;","case CLASS_TYPE_THRALL_OF_GRAZZT_A : sClass = \"Thrall of Grazzt\"; break;"]
["case ","CLASS_TYPE_THRALLHERD"," : ","sClass"," = ","\"Thrallherd\"","; ","break;","case CLASS_TYPE_THRALLHERD : sClass = \"Thrallherd\"; break;"]
["case ","CLASS_TYPE_TOTEM_RAGER"," : ","sClass"," = ","\"Totem Rager\"","; ","break;","case CLASS_TYPE_TOTEM_RAGER : sClass = \"Totem Rager\"; break;"]
["case ","CLASS_TYPE_TOTEMIST"," : ","sClass"," = ","\"Totemist\"","; ","break;","case CLASS_TYPE_TOTEMIST : sClass = \"Totemist\"; break;"]
["case ","CLASS_TYPE_TRUENAMER"," : ","sClass"," = ","\"Truenamer\"","; ","break;","case CLASS_TYPE_TRUENAMER : sClass = \"Truenamer\"; break;"]
["case ","CLASS_TYPE_TRUENECRO"," : ","sClass"," = ","\"True Necromancer\"","; ","break;","case CLASS_TYPE_TRUENECRO : sClass = \"True Necromancer\"; break;"]
["case ","CLASS_TYPE_ULTIMATE_MAGUS"," : ","sClass"," = ","\"Ultimate Magus\"","; ","break;",{"$f":"CONCATENATE(A195,B195,C195,D195,E195,F195,G195,H195)","v":"case CLASS_TYPE_ULTIMATE_MAGUS : sClass = \"Ultimate Magus\"; break;"}]
["case ","CLASS_TYPE_UMBRAL_DISCIPLE"," : ","sClass"," = ","\"Umbral Disciple\"","; ","break;","case CLASS_TYPE_UMBRAL_DISCIPLE : sClass = \"Umbral Disciple\"; break;"]
["case ","CLASS_TYPE_UNSEEN_SEER"," : ","sClass"," = ","\"Unseen Seer\"","; ","break;","case CLASS_TYPE_UNSEEN_SEER : sClass = \"Unseen Seer\"; break;"]
["case ","CLASS_TYPE_UR_PRIEST"," : ","sClass"," = ","\"Ur-Priest\"","; ","break;","case CLASS_TYPE_UR_PRIEST : sClass = \"Ur-Priest\"; break;"]
["case ","CLASS_TYPE_VASSAL"," : ","sClass"," = ","\"Vassal of Bahamut\"","; ","break;","case CLASS_TYPE_VASSAL : sClass = \"Vassal of Bahamut\"; break;"]
["case ","CLASS_TYPE_VIRTUOSO"," : ","sClass"," = ","\"Virtuoso\"","; ","break;","case CLASS_TYPE_VIRTUOSO : sClass = \"Virtuoso\"; break;"]
["case ","CLASS_TYPE_WAR_WIZARD_OF_CORMYR"," : ","sClass"," = ","\"War Wizard of Cormyr\"","; ","break;","case CLASS_TYPE_WAR_WIZARD_OF_CORMYR : sClass = \"War Wizard of Cormyr\"; break;"]
["case ","CLASS_TYPE_WARBLADE"," : ","sClass"," = ","\"Warblade\"","; ","break;","case CLASS_TYPE_WARBLADE : sClass = \"Warblade\"; break;"]
["case ","CLASS_TYPE_WARCHIEF"," : ","sClass"," = ","\"Warchief\"","; ","break;","case CLASS_TYPE_WARCHIEF : sClass = \"Warchief\"; break;"]
["case ","CLASS_TYPE_WARFORGED_JUGGERNAUT"," : ","sClass"," = ","\"Warforged Juggernaut\"","; ","break;","case CLASS_TYPE_WARFORGED_JUGGERNAUT : sClass = \"Warforged Juggernaut\"; break;"]
["case ","CLASS_TYPE_WARLOCK"," : ","sClass"," = ","\"Warlock\"","; ","break;","case CLASS_TYPE_WARLOCK : sClass = \"Warlock\"; break;"]
["case ","CLASS_TYPE_WARMAGE"," : ","sClass"," = ","\"Warmage\"","; ","break;","case CLASS_TYPE_WARMAGE : sClass = \"Warmage\"; break;"]
["case ","CLASS_TYPE_WARMIND"," : ","sClass"," = ","\"Warmind\"","; ","break;","case CLASS_TYPE_WARMIND : sClass = \"Warmind\"; break;"]
["case ","CLASS_TYPE_WARPRIEST"," : ","sClass"," = ","\"Warpriest\"","; ","break;","case CLASS_TYPE_WARPRIEST : sClass = \"Warpriest\"; break;"]
["case ","CLASS_TYPE_WAYFARER_GUIDE"," : ","sClass"," = ","\"Wayfarer Guide\"","; ","break;","case CLASS_TYPE_WAYFARER_GUIDE : sClass = \"Wayfarer Guide\"; break;"]
["case ","CLASS_TYPE_WEREWOLF"," : ","sClass"," = ","\"Werewolf\"","; ","break;","case CLASS_TYPE_WEREWOLF : sClass = \"Werewolf\"; break;"]
["case ","CLASS_TYPE_WILD_MAGE"," : ","sClass"," = ","\"Wild Mage\"","; ","break;","case CLASS_TYPE_WILD_MAGE : sClass = \"Wild Mage\"; break;"]
["case ","CLASS_TYPE_WILDER"," : ","sClass"," = ","\"Wilder\"","; ","break;","case CLASS_TYPE_WILDER : sClass = \"Wilder\"; break;"]
["case ","CLASS_TYPE_WITCHBORN_BINDER"," : ","sClass"," = ","\"Witchborn Binder\"","; ","break;","case CLASS_TYPE_WITCHBORN_BINDER : sClass = \"Witchborn Binder\"; break;"]